fUSD/lending_fUSD_20241210
["ID","MTS","AMOUNT","RATE_DAILY","PERIOD"]
[344838485,1733825439467,-500.0,0.00011098,2]
[344838486,1733825439475,-500.0,0.00011098,2]
[344838487,1733825439485,-500.0,0.00011098,2]
[344838488,1733825439494,-184.50663915,0.00011098,2]
[344838489,1733825439503,-500.0,0.00011098,2]
[344838490,1733825439511,-500.0,0.00011098,2]
[344838491,1733825439521,-500.0,0.00011098,2]
[344838492,1733825439530,-500.0,0.00011098,2]
[344838493,1733825439539,-500.0,0.00011098,2]
[344838494,1733825439548,-500.0,0.00011098,2]
[344838495,1733825439557,-500.0,0.00011098,2]
[344838496,1733825439569,-304.6,0.00011098,2]
[344838497,1733825439578,-500.0,0.00011098,2]
[344838498,1733825439587,-500.0,0.00011098,2]
[344838499,1733825439596,-500.0,0.00011098,2]
[344838500,1733825439606,-500.0,0.00011098,2]
[344838501,1733825439615,-500.0,0.00011098,2]
[344838502,1733825439624,-500.0,0.00011098,2]
[344838503,1733825439633,-629.7,0.00011098,2]
[344838504,1733825439643,-500.0,0.00011098,2]
[344838505,1733825439653,-500.0,0.00011098,2]
[344838506,1733825439662,-500.0,0.00011098,2]
[344838507,1733825439671,-500.0,0.00011098,2]
[344838508,1733825439680,-500.0,0.00011098,2]
[344838509,1733825439690,-323.6,0.00011098,2]
[344838510,1733825439700,-500.0,0.00011098,2]
[344838511,1733825439709,-500.0,0.00011098,2]
[344838512,1733825439719,-500.0,0.00011098,2]
[344838513,1733825439728,-500.0,0.00011098,2]
[344838514,1733825439737,-500.0,0.00011098,2]
[344838515,1733825439746,-500.0,0.00011098,2]
[344838516,1733825439755,-500.63540639,0.00011098,2]
[344838517,1733825439764,-500.0,0.00011098,2]
[344838518,1733825439777,-650.02,0.00011098,2]
[344838519,1733825439786,-650.02,0.00011098,2]
[344838520,1733825439795,-650.02,0.00011098,2]
[344838521,1733825439804,-650.02,0.00011098,2]
[344838522,1733825439815,-650.02,0.00011098,2]
[344838523,1733825439824,-650.02,0.00011098,2]
[344838524,1733825439832,-650.02,0.00011098,2]
[344838525,1733825439841,-650.02,0.00011098,2]
[344838526,1733825439851,-650.02,0.00011098,2]
[344838527,1733825439861,-650.02,0.00011098,2]
[344838528,1733825439870,-650.02,0.00011098,2]
[344838529,1733825439879,-650.02,0.00011098,2]
[344838530,1733825439888,-650.02,0.00011098,2]
[344838531,1733825439897,-650.02,0.00011098,2]
[344838532,1733825439906,-105.65185544,0.00011098,2]
[344838533,1733825439923,-544.36814456,0.00011098,2]
[344838534,1733825439932,-650.02,0.00011098,2]
[344838535,1733825439941,-650.02,0.00011098,2]
[344838536,1733825439951,-120.63390638,0.00011098,2]
[344838537,1733825439962,-529.38609362,0.00011098,2]
[344838538,1733825439971,-199.07773675,0.00011098,2]
[344838539,1733825439982,-450.94226325,0.00011098,2]
[344838540,1733825439991,-514.53667604,0.00011098,2]
[344838541,1733825440003,-135.48332396,0.00011098,2]
[344838542,1733825440012,-650.02,0.00011098,2]
[344838543,1733825440021,-650.02,0.00011098,2]
[344838544,1733825440030,-650.02,0.00011098,2]
[344838545,1733825440039,-650.18,0.00011098,2]
[344838546,1733825440049,-500.0,0.00011098,2]
[344838547,1733825440059,-500.0,0.00011098,2]
[344838548,1733825440069,-500.0,0.00011098,2]
[344838549,1733825440078,-471.54598889,0.00011098,2]
[344838550,1733825440090,-28.45401111,0.00011098,2]
[344838551,1733825440099,-322.48,0.00011098,2]
[344838552,1733825440108,-500.0,0.00011098,2]
[344838553,1733825440118,-500.0,0.00011098,2]
[344838554,1733825440127,-500.0,0.00011098,2]
[344838555,1733825440136,-500.0,0.00011098,2]
[344838556,1733825440146,-500.0,0.00011098,2]
[344838557,1733825440155,-456.66,0.00011098,2]
[344838558,1733825440165,-500.0,0.00011098,2]
[344838559,1733825440175,-500.0,0.00011098,2]
[344838560,1733825440184,-500.0,0.00011098,2]
[344838561,1733825440196,-500.0,0.00011098,2]
[344838562,1733825440206,-498.16,0.00011098,2]
[344838563,1733825440215,-500.0,0.00011098,2]
[344838564,1733825440225,-500.0,0.00011098,2]
[344838565,1733825440235,-169.07991014,0.00011098,2]
[344838566,1733825440246,-330.92008986,0.00011098,2]
[344838567,1733825440255,-336.1,0.00011098,2]
[344838568,1733825440265,-500.0,0.00011098,2]
[344838569,1733825440274,-500.0,0.00011098,2]
[344838570,1733825440284,-500.0,0.00011098,2]
[344838571,1733825440293,-67.39112125,0.00011098,2]
[344838572,1733825440305,-432.60887875,0.00011098,2]
[344838573,1733825440315,-500.0,0.00011098,2]
[344838574,1733825440328,-117.82713207,0.00011098,2]
[344838595,1733825443086,-382.17286793,0.00011098,2]
[344838596,1733825443095,-500.0,0.00011098,2]
[344838597,1733825443105,-500.0,0.00011098,2]
[344838598,1733825443116,-500.0,0.00011098,2]
[344838599,1733825443126,-500.0,0.00011098,2]
[344838600,1733825443137,-500.0,0.00011098,2]
[344838601,1733825443146,-500.0,0.00011098,2]
[344838602,1733825443155,-500.0,0.00011098,2]
[344838603,1733825443165,-500.0,0.00011098,2]
[344838604,1733825443175,-500.0,0.00011098,2]
[344838605,1733825443185,-500.0,0.00011098,2]
[344838606,1733825443195,-319.78,0.00011098,2]
[344838607,1733825443204,-1000.0,0.00011098,2]
[344838608,1733825443213,-1000.0,0.00011098,2]
[344838609,1733825443223,-500.0,0.00011098,2]
[344838610,1733825443232,-500.0,0.00011098,2]
[344838611,1733825443242,-500.0,0.00011098,2]
[344838612,1733825443252,-500.0,0.00011098,2]
[344838613,1733825443262,-500.0,0.00011098,2]
[344838614,1733825443271,-500.0,0.00011098,2]
[344838615,1733825443281,-500.0,0.00011098,2]
[344838616,1733825443291,-500.0,0.00011098,2]
[344838617,1733825443301,-500.0,0.00011098,2]
[344838618,1733825443310,-594.24,0.00011098,2]
[344838619,1733825443322,-500.0,0.00011098,2]
[344838620,1733825443332,-376.73572038,0.00011098,2]
[344838621,1733825443344,-123.26427962,0.00011098,2]
[344838622,1733825443354,-500.0,0.00011098,2]
[344838623,1733825443363,-586.07,0.00011098,2]
[344838624,1733825443373,-500.0,0.00011098,2]
[344838625,1733825443382,-500.0,0.00011098,2]
[344838626,1733825443392,-500.0,0.00011098,2]
[344838627,1733825443402,-500.0,0.00011098,2]
[344838628,1733825443411,-538.4,0.00011098,2]
[344838629,1733825443421,-500.50899837,0.00011098,2]
[344838630,1733825443431,-510.15261606,0.00011098,2]
[344838631,1733825443440,-500.0,0.00011098,2]
[344838632,1733825443450,-503.9357861,0.00011098,2]
[344838633,1733825443460,-161.80266057,0.00011098,2]
[344838634,1733825443480,-350.91442882,0.00011098,2]
[344838635,1733825443490,-501.73687063,0.00011098,2]
[344838636,1733825443500,-500.0,0.00011098,2]
[344838637,1733825443510,-500.0,0.00011098,2]
[344838638,1733825443519,-500.0,0.00011098,2]
[344838639,1733825443529,-502.82238615,0.00011098,2]
[344838640,1733825443539,-500.0,0.00011098,2]
[344838641,1733825443548,-500.0,0.00011098,2]
[344838642,1733825443557,-500.0,0.00011098,2]
[344838643,1733825443566,-500.0,0.00011098,2]
[344838644,1733825443578,-500.0,0.00011098,2]
[344838645,1733825443588,-500.0,0.00011098,2]
[344838646,1733825443596,-500.0,0.00011098,2]
[344838647,1733825443606,-500.0,0.00011098,2]
[344838648,1733825443616,-503.24970608,0.00011098,2]
[344838649,1733825443625,-500.0,0.00011098,2]
[344838650,1733825443634,-500.0,0.00011098,2]
[344838651,1733825443643,-500.0,0.00011098,2]
[344838652,1733825443654,-500.0,0.00011098,2]
[344838653,1733825443664,-500.92755671,0.00011098,2]
[344838654,1733825443673,-500.0,0.00011098,2]
[344838655,1733825443683,-3026.0424797,0.00011099,2]
[344838656,1733825443692,-500.0,0.00011099,2]
[344838657,1733825443702,-555.94330027,0.00011099,2]
[344838658,1733825443713,-239.16702753,0.00011099,2]
[344838659,1733825443722,-500.0,0.00011099,2]
[344838660,1733825443732,-502.46180031,0.00011099,2]
[344838661,1733825443742,-408.22648633,0.00011099,2]
[344838662,1733825443752,-500.0,0.00011099,2]
[344838663,1733825443761,-500.89598542,0.00011099,2]
[344838664,1733825443771,-501.17307276,0.00011099,2]
[344838665,1733825443783,-500.0,0.00011099,2]
[344838666,1733825443793,-500.0,0.00011099,2]
[344838667,1733825443803,-500.0,0.00011099,2]
[344838668,1733825443813,-500.0,0.00011099,2]
[344838669,1733825443824,-417.77373224,0.00011099,2]
[344838670,1733825443836,-161.97250315,0.00011099,2]
[344838671,1733825443846,-500.0,0.00011099,2]
[344838672,1733825443856,-500.0,0.00011099,2]
[344838673,1733825443867,-500.0,0.00011099,2]
[344838674,1733825443876,-220.54185998,0.00011099,2]
[344838675,1733825443886,-500.0,0.00011099,2]
[344838676,1733825443895,-500.0,0.00011099,2]
[344838677,1733825443905,-500.0,0.00011099,2]
[344838678,1733825443915,-505.11192822,0.00011099,2]
[344838679,1733825443925,-500.0,0.00011099,2]
[344838680,1733825443935,-500.0,0.00011099,2]
[344838681,1733825443944,-500.0,0.00011099,2]
[344838682,1733825443954,-500.0,0.00011099,2]
[344838683,1733825443963,-500.0,0.00011099,2]
[344838684,1733825443972,-500.0,0.00011099,2]
[344838685,1733825443983,-500.0,0.00011099,2]
[344838686,1733825443992,-500.0,0.00011099,2]
[344838687,1733825444004,-500.0,0.00011099,2]
[344838688,1733825444013,-500.0,0.00011099,2]
[344838689,1733825444023,-304.0766307,0.00011099,2]
[344838690,1733825444033,-525.58062972,0.00011099,2]
[344838691,1733825444043,-500.0,0.00011099,2]
[344838692,1733825444052,-500.0,0.00011099,2]
[344838693,1733825444062,-500.0,0.00011099,2]
[344838694,1733825444073,-500.0,0.00011099,2]
[344838695,1733825444082,-500.0,0.00011099,2]
[344838696,1733825444096,-500.0,0.00011099,2]
[344838697,1733825444106,-500.0,0.00011099,2]
[344838698,1733825444116,-500.0,0.00011099,2]
[344838699,1733825444126,-500.0,0.00011099,2]
[344838700,1733825444135,-324.1,0.00011099,2]
[344838701,1733825444144,-504.91278682,0.00011099,2]
[344838702,1733825444154,-530.85969745,0.00011099,2]
[344838703,1733825444164,-150.52219805,0.00011099,2]
[344838704,1733825444174,-500.0,0.00011099,2]
[344838705,1733825444183,-500.0,0.00011099,2]
[344838706,1733825444194,-500.0,0.00011099,2]
[344838707,1733825444204,-500.0,0.00011099,2]
[344838708,1733825444213,-500.0,0.00011099,2]
[344838709,1733825444223,-500.0,0.00011099,2]
[344838710,1733825444233,-500.0,0.00011099,2]
[344838711,1733825444242,-500.0,0.00011099,2]
[344838712,1733825444252,-500.0,0.00011099,2]
[344838713,1733825444262,-500.0,0.00011099,2]
[344838714,1733825444271,-500.0,0.00011099,2]
[344838715,1733825444281,-276.48614981,0.00011099,2]
[344838716,1733825444291,-500.0,0.00011099,2]
[344838717,1733825444302,-500.0,0.00011099,2]
[344838718,1733825444312,-500.0,0.00011099,2]
[344838719,1733825444324,-500.0,0.00011099,2]
[344838720,1733825444334,-500.0,0.00011099,2]
[344838721,1733825444344,-500.0,0.00011099,2]
[344838722,1733825444354,-500.0,0.00011099,2]
[344838723,1733825444364,-500.0,0.00011099,2]
[344838724,1733825444374,-500.0,0.00011099,2]
[344838725,1733825444384,-500.0,0.00011099,2]
[344838726,1733825444394,-532.03898418,0.00011099,2]
[344838727,1733825444404,-552.71719398,0.00011099,2]
[344838728,1733825444414,-500.0,0.00011099,2]
[344838729,1733825444424,-500.0,0.00011099,2]
[344838730,1733825444433,-500.0,0.00011099,2]
[344838731,1733825444443,-500.0,0.00011099,2]
[344838732,1733825444452,-273.99054556,0.00011099,2]
[344838733,1733825444462,-500.0,0.00011099,2]
[344838734,1733825444471,-500.0,0.00011099,2]
[344838735,1733825444481,-513.38279757,0.00011099,2]
[344838736,1733825444491,-500.0,0.00011099,2]
[344838737,1733825444501,-500.0,0.00011099,2]
[344838738,1733825444510,-364.28618867,0.00011099,2]
[344838739,1733825444519,-500.0,0.00011099,2]
[344838740,1733825444529,-500.0,0.00011099,2]
[344838741,1733825444539,-506.37163485,0.00011099,2]
[344838742,1733825444549,-500.0,0.00011099,2]
[344838743,1733825444558,-500.0,0.00011099,2]
[344838744,1733825444567,-439.25209756,0.00011099,2]
[344838745,1733825444578,-226.11547563,0.00011099,2]
[344838746,1733825444588,-500.0,0.00011099,2]
[344838747,1733825444597,-215.22650267,0.00011099,2]
[344838758,1733825446016,-284.77349733,0.00011099,2]
[344838759,1733825446026,-500.0,0.00011099,2]
[344838760,1733825446036,-500.0,0.00011099,2]
[344838761,1733825446045,-500.0,0.00011099,2]
[344838762,1733825446055,-500.0,0.00011099,2]
[344838763,1733825446064,-500.0,0.00011099,2]
[344838764,1733825446076,-500.0,0.00011099,2]
[344838765,1733825446085,-500.0,0.00011099,2]
[344838766,1733825446096,-500.0,0.00011099,2]
[344838767,1733825446105,-377.05,0.00011099,2]
[344838768,1733825446115,-500.0,0.00011099,2]
[344838769,1733825446125,-500.0,0.00011099,2]
[344838770,1733825446135,-500.0,0.00011099,2]
[344838771,1733825446145,-500.0,0.00011099,2]
[344838772,1733825446155,-500.0,0.00011099,2]
[344838773,1733825446166,-500.0,0.00011099,2]
[344838774,1733825446176,-500.0,0.00011099,2]
[344838775,1733825446185,-500.0,0.00011099,2]
[344838776,1733825446195,-500.0,0.00011099,2]
[344838777,1733825446206,-500.0,0.00011099,2]
[344838778,1733825446215,-110.47650267,0.00011099,2]
[344838779,1733825446227,-389.52349733,0.00011099,2]
[344838780,1733825446237,-500.0,0.00011099,2]
[344838781,1733825446247,-132.47650267,0.00011099,2]
[344838782,1733825446330,-367.52349733,0.00011099,2]
[344838783,1733825446340,-510.64,0.00011099,2]
[344838784,1733825446351,-500.0,0.00011099,2]
[344838785,1733825446361,-500.0,0.00011099,2]
[344838786,1733825446371,-500.0,0.00011099,2]
[344838787,1733825446380,-500.0,0.00011099,2]
[344838788,1733825446390,-500.0,0.00011099,2]
[344838789,1733825446401,-500.0,0.00011099,2]
[344838790,1733825446411,-500.0,0.00011099,2]
[344838791,1733825446421,-500.0,0.00011099,2]
[344838792,1733825446431,-500.0,0.00011099,2]
[344838793,1733825446441,-500.0,0.00011099,2]
[344838794,1733825446451,-500.0,0.00011099,2]
[344838795,1733825446460,-500.0,0.00011099,2]
[344838796,1733825446469,-500.0,0.00011099,2]
[344838797,1733825446478,-250.12,0.00011099,2]
[344838798,1733825446487,-500.0,0.00011099,2]
[344838799,1733825446498,-500.0,0.00011099,2]
[344838800,1733825446508,-500.0,0.00011099,2]
[344838801,1733825446518,-500.0,0.00011099,2]
[344838802,1733825446527,-151.83434266,0.00011099,2]
[344838803,1733825449276,2000.0,0.00016658,30]
[344838804,1733825449570,2000.0,0.00016603,30]
[344838805,1733825449872,2000.0,0.00016548,30]
[344838806,1733825450174,2000.0,0.00016493,30]
[344838807,1733825450481,2000.0,0.00016438,30]
[344838808,1733825450792,2000.0,0.00016384,30]
[344838809,1733825451110,2000.0,0.00016329,30]
[344838810,1733825451407,2000.0,0.00016274,30]
[344838811,1733825451707,2000.0,0.00016219,30]
[344838812,1733825452014,2000.0,0.00016164,30]
[344838814,1733825495514,2000.0,0.00016658,30]
[344838815,1733825495788,2000.0,0.00016658,30]
[344838816,1733825496073,2000.0,0.00016658,30]
[344838817,1733825496356,2000.0,0.00016658,30]
[344838818,1733825496637,2000.0,0.00016658,30]
[344838819,1733825496918,2000.0,0.00016658,30]
[344838820,1733825497203,2000.0,0.00016658,30]
[344838821,1733825497489,2000.0,0.00016658,30]
[344838822,1733825497780,2000.0,0.00016658,30]
[344838823,1733825498591,2000.0,0.00016658,30]
[344838824,1733825774081,1153.87,0.00016658,30]
[344838825,1733825875244,5000.0,7e-05,2]
[344838826,1733825892003,15000.0,6e-05,2]
[344838844,1733826602514,150.0,6e-05,2]
[344838845,1733826602850,150.0,6e-05,2]
[344838846,1733826603080,150.0,6e-05,2]
[344838847,1733826603276,296.10757917,6e-05,2]
[344838856,1733826632090,-525.96,8.422e-05,2]
[344838857,1733826632102,-559.463385,9.9e-05,2]
[344838862,1733826632175,-674.24992981,9.9e-05,2]
[344838863,1733826632187,-1625.54541269,9.907e-05,2]
[344838864,1733826632268,-782.34458731,9.907e-05,2]
[344838865,1733826632279,-537.92547587,9.932e-05,2]
[344838866,1733826632357,-545.52039878,9.932e-05,2]
[344838867,1733826632371,-2651.56412535,9.932e-05,2]
[344838868,1733826632383,-400.0,0.00010013,2]
[344838869,1733826632394,-900.27,0.00010055,2]
[344838870,1733826632405,-421.2,0.00010073,2]
[344838871,1733826632416,-300.0,0.00010112,2]
[344838872,1733826632427,-1000.0,0.00010113,2]
[344838873,1733826632439,-168.12,0.00010333,2]
[344838874,1733826632450,-400.0,0.00010383,2]
[344838875,1733826632464,-250.0,0.0001043,2]
[344838876,1733826632475,-340.433,0.0001055,2]
[344838877,1733826632486,-1062.80181779,0.0001059,2]
[344838878,1733826632508,-951.66,0.0001059,2]
[344838879,1733826632521,-975.064333,0.0001059,2]
[344838880,1733826632535,-1867.217353,0.0001059,2]
[344838884,1733826638094,-1110.25649621,0.0001059,2]
[344838885,1733826638104,-634.0,0.0001059,2]
[344838886,1733826638114,-8625.06,0.0001059,2]
[344838887,1733826638124,-525.96,0.00010686,2]
[344838888,1733826638133,-400.0,0.00010753,2]
[344838889,1733826638143,-200.0,0.00010775,2]
[344838890,1733826638152,-1017.06,0.00010783,2]
[344838891,1733826638162,-150.0,0.00010805,2]
[344838892,1733826638176,-1003.15,0.00010872,2]
[344838893,1733826638186,-608.91394171,0.00010891,2]
[344838894,1733826638398,-395.89605829,0.00010891,2]
[344838895,1733826638408,-383.9515,0.00010899,2]
[344838896,1733826638418,-985.21,0.00010914,2]
[344838897,1733826638428,-981.51,0.00010943,2]
[344838898,1733826638437,-3517.0,0.00010959,2]
[344838899,1733826638447,-159.791776,0.00010973,2]
[344838900,1733826638457,-985.14,0.00010977,2]
[344838901,1733826638467,-150.0,0.00010977,2]
[344838902,1733826638476,-5068.34569341,0.00010999,2]
[344838944,1733826640070,-22675.64250814,0.00010999,2]
[344838945,1733826640363,-375.86500001,0.00010999,2]
[344838957,1733826643549,-13947.7985,0.00010999,2]
[344838959,1733826643561,-13197.97429925,0.00010999,2]
[344838964,1733826643704,-1957.82079513,0.00010999,2]
[344838965,1733826643716,-639.79190814,0.00010999,2]
[344838966,1733826643865,-35091.79603983,0.00010999,2]
[344838967,1733826643877,-62616.42091194,0.00010999,2]
[344838968,1733826643888,-13821.22407521,0.00010999,2]
[344838976,1733826646094,-2602.99497111,0.00010999,2]
[344838978,1733826646110,-124173.20533215,0.00010999,2]
[344838980,1733826646121,-52938.849,0.00010999,2]
[344838984,1733826646414,-1377.5508013,0.00010999,2]
[344838989,1733826720312,1109.72,0.00016658,30]
[344838990,1733826903105,20000.0,0.0001021,10]
[344838995,1733827704016,50000.0,0.0002,120]
[344838996,1733827704088,16997755.41557701,0.0002,120]
[344838997,1733827704121,2957244.58442299,0.0002,120]
[344838998,1733827735555,42755.41557701,0.0002,120]
[344838999,1733827748871,1015.85,0.00016658,30]
[344839008,1733827832315,-514.07,8.219e-05,2]
[344839010,1733827832325,-547.05457206,9.735e-05,2]
[344839012,1733827832336,-115.98542794,9.735e-05,2]
[344839014,1733827832346,-250.0,9.756e-05,2]
[344839016,1733827832356,-200.0,9.784e-05,2]
[344839017,1733827832365,-198.96,9.863e-05,2]
[344839018,1733827832375,-1916.19228524,9.9e-05,2]
[344839019,1733827832386,-287.69881476,9.9e-05,2]
[344839020,1733827832395,-802.0807,9.9e-05,2]
[344839021,1733827832405,-1000.0,9.976e-05,2]
[344839022,1733827832415,-44.96726851,9.999e-05,2]
[344839023,1733827832426,-255.03273149,9.999e-05,2]
[344839024,1733827832436,-150.0,9.999e-05,2]
[344839025,1733827832448,-4533.94610631,0.0001,2]
[344839026,1733827832460,-3364.23786805,0.0001,2]
[344839027,1733827832482,-2023.54757395,0.0001,2]
[344839028,1733827832494,-11431.70489589,0.0001,2]
[344839029,1733827832505,-800.90251251,0.0001,2]
[344839030,1733827832553,-329.69305255,0.0001,2]
[344839039,1733827838515,-79870.46046402,0.0001,2]
[344839040,1733827838525,-4379.616,0.0001,2]
[344839041,1733827838535,-291.56,0.00010007,2]
[344839042,1733827838548,-768.51,0.00010137,2]
[344839043,1733827838557,-150.0,0.00010164,2]
[344839044,1733827838567,-198.96,0.00010228,2]
[344839045,1733827838576,-166.36,0.00010261,2]
[344839046,1733827838587,-300.0,0.00010274,2]
[344839047,1733827838596,-150.0,0.00010274,2]
[344839048,1733827838606,-870.73,0.00010274,2]
[344839049,1733827838618,-974.91,0.00010274,2]
[344839050,1733827838627,-150.0,0.00010274,2]
[344839051,1733827838637,-1510.75,0.00010295,2]
[344839052,1733827838647,-514.07,0.00010463,2]
[344839053,1733827838657,-337.37,0.0001055,2]
[344839054,1733827838667,-176.63,0.00010569,2]
[344839055,1733827838676,-198.96,0.00010593,2]
[344839056,1733827838686,-150.0,0.00010597,2]
[344839057,1733827838695,-13690.4681,0.00010759,2]
[344839058,1733827838706,-3409.8205,0.00010759,2]
[344839059,1733827838715,-166.36,0.00010826,2]
[344839060,1733827838725,-94485.6923,0.00010859,2]
[344839061,1733827838735,-200.0,0.00010884,2]
[344839062,1733827838744,-207.49944028,0.0001089,2]
[344839063,1733827838754,-1974.27016363,0.0001089,2]
[344839064,1733827838763,-3000.0,0.0001089,2]
[344839065,1733827838773,-5000.0,0.00010897,2]
[344839066,1733827838783,-161.12844201,0.00010897,2]
[344839067,1733827838793,-1359.3506,0.00010898,2]
[344839068,1733827838803,-7211.8762,0.00010899,2]
[344839069,1733827838813,-274.3544,0.00010899,2]
[344839070,1733827838822,-13335.4019,0.00010899,2]
[344839071,1733827838831,-161.12844201,0.00010923,2]
[344839072,1733827838840,-1974.27016362,0.00010945,2]
[344839073,1733827838849,-161.12844201,0.00010948,2]
[344839074,1733827838859,-663.04,0.00010951,2]
[344839075,1733827838869,-198.96,0.00010958,2]
[344839076,1733827838879,-164.832464,0.00010958,2]
[344839077,1733827838889,-156.641536,0.00010958,2]
[344839078,1733827838898,-500.0,0.00010958,2]
[344839083,1733827839117,-500.0,0.00010958,2]
[344839084,1733827839127,-500.0,0.00010958,2]
[344839085,1733827839137,-500.20438525,0.00010958,2]
[344839086,1733827839147,-500.0,0.00010958,2]
[344839087,1733827839157,-500.0,0.00010958,2]
[344839088,1733827839167,-500.0,0.00010958,2]
[344839089,1733827839177,-500.0,0.00010958,2]
[344839090,1733827839187,-500.0,0.00010958,2]
[344839091,1733827839200,-500.0,0.00010958,2]
[344839092,1733827839210,-500.0,0.00010958,2]
[344839093,1733827839220,-500.0,0.00010958,2]
[344839094,1733827839230,-500.0,0.00010958,2]
[344839095,1733827839240,-598.96439932,0.00010958,2]
[344839096,1733827839250,-500.0,0.00010958,2]
[344839097,1733827839259,-500.0,0.00010958,2]
[344839098,1733827839269,-439.7402324,0.00010958,2]
[344839099,1733827839279,-500.0,0.00010958,2]
[344839100,1733827839288,-280.84230508,0.00010958,2]
[344839101,1733827839297,-500.0,0.00010958,2]
[344839102,1733827839307,-500.0,0.00010958,2]
[344839103,1733827839316,-513.05,0.00010958,2]
[344839104,1733827839326,-1259.82,0.00010958,2]
[344839105,1733827839335,-500.0,0.00010958,2]
[344839106,1733827839344,-497.64138281,0.00010958,2]
[344839107,1733827839353,-1463.72,0.00010958,2]
[344839108,1733827839363,-501.36775633,0.00010958,2]
[344839109,1733827839372,-495.82420826,0.00010958,2]
[344839110,1733827839382,-509.96583768,0.00010958,2]
[344839111,1733827839392,-504.8356072,0.00010958,2]
[344839112,1733827839401,-341.96293727,0.00010958,2]
[344839113,1733827839411,-501.71891646,0.00010958,2]
[344839114,1733827839420,-500.0,0.00010958,2]
[344839115,1733827839429,-500.0,0.00010958,2]
[344839116,1733827839439,-500.0,0.00010958,2]
[344839117,1733827839452,-500.0,0.00010958,2]
[344839118,1733827839465,-500.0,0.00010958,2]
[344839119,1733827839475,-1397.69,0.00010958,2]
[344839120,1733827839484,-1626.16,0.00010958,2]
[344839121,1733827839494,-500.0,0.00010958,2]
[344839122,1733827839503,-557.21,0.00010958,2]
[344839123,1733827839512,-1045.12,0.00010958,2]
[344839124,1733827839522,-500.0,0.00010958,2]
[344839125,1733827839531,-725.07,0.00010958,2]
[344839126,1733827839545,-583.68,0.00010958,2]
[344839127,1733827839554,-500.0,0.00010958,2]
[344839128,1733827839564,-299.61806106,0.00010958,2]
[344839129,1733827839574,-500.0,0.00010958,2]
[344839130,1733827839584,-4264.39,0.00010958,2]
[344839131,1733827839594,-2915.81,0.00010958,2]
[344839132,1733827839604,-500.0,0.00010958,2]
[344839133,1733827839614,-500.0,0.00010958,2]
[344839134,1733827839625,-500.0,0.00010958,2]
[344839135,1733827839635,-503.60452768,0.00010958,2]
[344839136,1733827839644,-500.0,0.00010958,2]
[344839137,1733827839654,-500.0,0.00010958,2]
[344839138,1733827839663,-500.0,0.00010958,2]
[344839139,1733827839672,-397.33597491,0.00010958,2]
[344839140,1733827839682,-500.0,0.00010958,2]
[344839141,1733827839691,-500.0,0.00010958,2]
[344839142,1733827839707,-500.0,0.00010958,2]
[344839143,1733827839716,-500.0,0.00010958,2]
[344839144,1733827839725,-500.0,0.00010958,2]
[344839145,1733827839734,-1572.85,0.00010958,2]
[344839146,1733827839743,-500.0,0.00010958,2]
[344839147,1733827839753,-500.0,0.00010958,2]
[344839148,1733827839762,-156.641536,0.00010958,2]